bitfinex-derivatives/quotes_ETHF0:USTF0_20250624
["timestamp","ask_amount","ask_price","bid_price","bid_amount"]
[1750803011782,0.6547,2442.8,2442.7,0.6547]
[1750803011984,0.97601464,2442.8,2442.7,0.6547]
[1750803012490,1.63070464,2442.8,2442.7,0.6547]
[1750803012682,0.97601464,2442.8,2442.7,0.6547]
[1750803013391,26.23368,2442.9,2442.8,0.65469]
[1750803013688,27.2097129,2442.9,2442.8,0.65469]
[1750803013987,27.2097129,2442.9,2442.7,0.65471]
[1750803014290,0.9760329,2442.8,2442.7,0.65471]
[1750803014987,26.5530329,2442.8,2442.7,0.65471]
[1750803016780,0.65475,2442.6,2442.5,5.65480433]
[1750803016988,9.1888211,2442.6,2442.1,3.2078]
[1750803017189,0.65485,2442.2,2442.1,3.2078]
[1750803017386,27.20865294,2442.2,2442.1,3.2078]
[1750803017590,0.65488,2442.1,2442.0,0.7056]
[1750803017888,1.63168294,2442.1,2442.0,0.7056]
[1750803018189,0.65491,2442.0,2441.9,0.6694]
[1750803018388,0.65491,2442.0,2441.8,3.86275]
[1750803018389,0.65493,2441.9,2441.8,3.2078]
[1750803018588,26.23093,2441.9,2441.8,3.2078]
[1750803018787,26.23093,2441.9,2441.8,3.86276]
[1750803018989,25.576,2441.9,2441.8,3.86276]
[1750803019692,26.23093,2441.9,2441.8,3.2078]
[1750803019896,25.576,2441.9,2441.8,3.86276]
[1750803020294,26.23093,2441.9,2441.8,3.2078]
[1750803021594,25.576,2441.9,2441.7,0.7056]
[1750803021791,0.65496,2441.8,2441.7,0.7056]
[1750803021994,0.655,2441.7,2441.6,0.65501]
[1750803022797,0.655,2441.7,2441.5,4.53223]
[1750803022998,0.655,2441.7,2441.5,4.60223]
[1750803023200,0.65501,2441.6,2441.5,3.9472]
[1750803023400,0.65501,2441.6,2441.5,0.65504]
[1750803023699,0.65507,2441.4,2441.2,3.86291]
[1750803023999,25.579,2441.3,2441.2,3.93291]
[1750803024202,26.23409,2441.3,2441.2,3.93291]
[1750803024494,26.23409,2441.3,2441.2,3.2778]
[1750803025094,0.7033,2441.5,2441.2,3.2778]
[1750803025095,1.35834,2441.5,2441.4,0.65507]
[1750803025301,26.23604,2441.5,2441.4,0.65507]
[1750803025500,25.581,2441.5,2441.4,0.65507]
[1750803025703,26.23604,2441.5,2441.4,0.65507]
[1750803026293,25.581,2441.5,2441.4,0.65507]
[1750803028311,0.1952794,3296.4,2441.4,11.85120369]
[1750803028312,6.803,2442.2,2441.4,11.85120369]
[1750803028506,25.583,2442.3,2442.2,0.65485]
[1750803029298,25.583,2442.3,2442.0,1.3965]
[1750803029504,0.65487,2442.2,2442.0,2.05139]
[1750803030408,26.23784,2442.3,2442.1,0.65488]
[1750803030808,26.23784,2442.3,2442.2,0.65485]
[1750803031106,26.23784,2442.3,2442.1,0.65487]
[1750803031303,0.65485,2442.2,2442.1,0.65487]
[1750803031505,26.23784,2442.3,2442.2,0.65485]
[1750803031803,25.583,2442.3,2442.2,0.65485]
[1750803032308,0.6922,2442.6,2442.5,0.65477]
[1750803032506,26.2742,2442.6,2442.5,0.65477]
[1750803032804,4.52120369,2442.9,2442.6,0.65472]
[1750803033010,32.385,2442.8,2442.5,3.2078]
[1750803033311,0.65474,2442.7,2442.5,0.65477]
[1750803034115,0.65475,2442.6,2442.4,0.65479]
[1750803034505,0.65475,2442.6,2442.5,0.65477]
[1750803035004,0.65475,2442.6,2442.4,0.65478]
[1750803035205,0.65474,2442.7,2442.5,0.65477]
[1750803035405,32.385,2442.8,2442.2,3.2078]
[1750803035707,0.65479,2442.5,2442.4,0.6548]
[1750803035909,26.23579,2442.5,2442.4,0.6548]
[1750803038112,0.6548,2442.4,2442.3,0.65481]
[1750803038313,26.23579,2442.5,2442.4,0.6548]
[1750803038915,25.581,2442.5,2442.4,0.6548]
[1750803039802,26.23577,2442.5,2442.4,0.6548]
[1750803040009,25.581,2442.5,2442.4,0.6548]
[1750803041013,26.23577,2442.5,2442.4,0.6548]
[1750803043114,26.92137,2442.5,2442.4,0.6548]
[1750803043514,27.89455386,2442.5,2442.4,0.6548]
[1750803044210,0.65473,2442.7,2442.4,0.6548]
[1750803044415,34.00007776,2442.6,2442.2,4.84494]
[1750803044619,32.372,2442.6,2442.5,0.65476]
[1750803044913,33.34551647,2442.6,2442.5,0.65476]
[1750803046012,0.65478,2442.5,2442.1,1.4296]
[1750803046212,37.86700932,2442.6,2442.3,0.65481]
[1750803046213,0.97380563,2442.4,2442.3,0.65481]
[1750803046413,0.65483,2442.3,2442.2,0.65484]
[1750803046710,31.06800932,2442.3,2441.9,0.65492]
[1750803046916,0.65493,2442.0,2441.8,0.65495]
[1750803047114,25.573,2441.9,2441.8,0.65495]
[1750803048211,0.6549,2442.1,2441.9,0.65493]
[1750803048412,25.572,2442.0,2441.9,0.65493]
[1750803048814,25.574,2442.0,2441.7,1.4251]
[1750803049123,25.574,2442.0,2441.9,0.65493]
[1750803050217,25.574,2442.0,2441.9,3.86273]
[1750803052320,0.65485,2442.2,2442.1,0.65488]
[1750803052515,26.22785,2442.2,2442.1,0.65488]
[1750803052819,27.20239351,2442.2,2442.1,0.65488]
[1750803054221,26.54754351,2442.2,2442.1,0.65488]
[1750803054917,0.97454351,2442.2,2442.1,0.65488]
[1750803055220,26.54754351,2442.2,2442.1,2.01898]
[1750803055419,26.54714784,2442.2,2442.1,2.0319]
[1750803055812,26.54714784,2442.2,2442.1,2.68678]
[1750803056316,25.572,2442.2,2442.1,2.68678]
[1750803056516,26.54794002,2442.2,2442.1,2.68678]
[1750803056712,0.97594002,2442.2,2442.1,2.68678]
[1750803056919,7.45273,2442.7,2442.6,0.65475]
[1750803057118,33.99962003,2442.7,2442.6,0.65475]
[1750803057819,7.77389003,2442.7,2442.6,0.65475]
[1750803058116,33.34489003,2442.7,2442.6,0.65475]
[1750803058320,33.34541022,2442.7,2442.6,0.65475]
[1750803058918,7.77441022,2442.7,2442.6,0.65475]
[1750803059122,33.34441022,2442.7,2442.6,2.06795]
[1750803059522,33.34441022,2442.7,2442.6,1.4132]
[1750803059726,33.99913022,2442.7,2442.6,0.65475]
[1750803060122,33.99913022,2442.7,2442.5,1.34525]
[1750803060322,0.97612379,2442.6,2442.5,1.34526]
[1750803060524,1.63087379,2442.6,2442.5,0.6905]
[1750803061028,0.65479,2442.5,2442.3,3.2078]
[1750803061234,32.368,2442.7,2442.3,3.2078]
[1750803061235,27.19892379,2442.4,2442.3,3.2078]
[1750803061428,29.27502379,2442.4,2441.6,4.621]
[1750803061726,0.65489,2442.1,2441.9,0.65492]
[1750803061929,27.19903379,2442.0,2441.9,0.65492]
[1750803062426,26.5442604,2442.0,2441.9,0.65493]
[1750803063422,27.1991704,2442.0,2441.9,0.65493]
[1750803063925,0.9762604,2442.0,2441.9,0.65493]
[1750803064129,26.5442604,2442.0,2441.9,0.65493]
[1750803066631,25.568,2442.0,2441.9,0.65493]
[1750803067232,26.22288,2442.1,2442.0,0.65491]
[1750803067432,25.568,2442.1,2442.0,0.65491]
[1750803067637,0.97581933,2442.1,2442.0,0.65491]
[1750803067933,1.63069933,2442.1,2442.0,0.65491]
[1750803068237,0.97581933,2442.1,2442.0,0.65491]
[1750803070138,0.65484,2442.3,2442.2,0.65485]
[1750803070340,27.19666088,2442.3,2442.2,0.65485]
[1750803071338,26.54182088,2442.3,2442.2,0.65485]
[1750803071541,26.54082088,2442.3,2442.2,3.86265]
[1750803071838,0.97582088,2442.3,2442.2,5.29555]
[1750803072038,26.21979,2442.5,2442.4,0.6548]
[1750803072238,27.19562861,2442.5,2442.4,0.6548]
[1750803072630,26.54083861,2442.5,2442.4,0.6548]
[1750803072833,27.19560861,2442.5,2442.4,0.6548]
[1750803073037,27.19560861,2442.5,2442.3,0.65481]
[1750803073238,0.97583861,2442.4,2442.3,0.65481]
[1750803076546,0.97583861,2442.4,2442.3,2.80481]
[1750803076752,0.97583861,2442.4,2442.3,0.65481]
[1750803077046,0.97583861,2442.4,2442.3,2.82481]
[1750803077347,0.97583861,2442.4,2442.3,2.05311]
[1750803081546,0.97583861,2442.4,2441.9,7.29631415]
[1750803081749,1.63066861,2442.3,2442.2,0.65483]
[1750803082551,0.97583861,2442.3,2442.2,0.65483]
[1750803083653,1.63066861,2442.3,2442.2,0.65483]
[1750803083844,0.65488,2442.1,2442.0,1.32479]
[1750803084047,0.65486,2442.2,2442.1,0.65487]
[1750803084246,0.97564348,2442.2,2442.1,0.65487]
[1750803084550,26.53064348,2442.2,2441.9,3.2078]
[1750803084843,0.65491,2442.0,2441.9,3.2078]
[1750803085053,1.63055348,2442.0,2441.9,3.2078]
[1750803085251,0.65499,2441.7,2441.6,3.8628]
[1750803085443,2.38995041,2441.7,2441.6,3.8628]
[1750803085649,3.36559389,2441.7,2441.6,3.8628]
[1750803086450,4.02058389,2441.7,2441.6,3.8628]
[1750803086749,3.36559389,2441.7,2441.6,3.8628]
[1750803087048,4.01976926,2441.7,2441.6,3.2078]
[1750803087647,5.43056926,2441.7,2441.6,3.2078]
[1750803092657,0.65503,2441.6,2441.4,0.65506]
[1750803092857,26.20804,2441.5,2441.4,0.66506]
[1750803093159,26.20804,2441.5,2441.4,0.01]
[1750803093658,25.553,2441.5,2441.4,0.66507]
[1750803094356,25.553,2441.5,2441.4,0.65507]
[1750803095158,26.20804,2441.5,2441.4,0.65507]
[1750803095457,26.20804,2441.5,2441.4,3.86287]
[1750803095657,26.20804,2441.5,2441.4,0.65507]
[1750803096161,0.65507,2441.4,2441.3,0.65508]
[1750803096458,0.6551,2441.3,2441.2,0.65511]
[1750803096658,0.6551,2441.3,2441.2,0.93511]
[1750803096855,0.6551,2441.3,2441.2,0.65511]
[1750803097051,0.6551,2441.3,2441.2,0.75511]
[1750803098559,0.97359961,2441.4,2441.1,3.86293]
[1750803098750,0.65512,2441.2,2441.1,3.2078]
[1750803098951,3.04507041,2441.2,2441.1,3.2078]
[1750803099248,0.6552,2440.9,2440.8,0.65523]
[1750803099448,26.2042,2440.9,2440.8,0.45]
[1750803099651,0.65525,2440.7,2440.6,3.8729]
[1750803099867,0.65525,2440.7,2440.6,4.53818]
[1750803100159,0.65525,2440.7,2440.6,0.01]
[1750803100660,0.65529,2440.6,2440.3,3.9287]
[1750803100853,26.20429,2440.6,2440.4,0.65532]
[1750803101048,26.20429,2440.6,2440.4,0.29]
[1750803101459,25.549,2440.6,2440.5,0.65531]
[1750803101756,25.549,2440.6,2440.5,0.67531]
[1750803102558,28.59423041,2440.6,2440.5,0.67531]
[1750803102759,28.59423041,2440.6,2440.5,0.02]
[1750803103156,31.80203041,2440.6,2440.5,0.02]
[1750803103459,31.80203041,2440.6,2440.3,1.37624]
[1750803103460,0.65532,2440.5,2440.3,1.37624]
[1750803103659,0.65532,2440.5,2440.3,1.45624]
[1750803103860,31.80205041,2440.6,2440.4,0.65534]
[1750803104062,1.3176,2440.9,2440.8,0.65523]
[1750803104261,25.55,2441.0,2440.9,0.6552]
[1750803104457,25.55,2441.0,2440.8,0.65522]
[1750803104662,25.55,2441.0,2440.8,0.02]
[1750803104964,25.55,2441.0,2440.9,0.6552]
[1750803105359,25.55,2441.0,2440.9,2.0729]
[1750803107660,3.2078,2441.2,2441.1,0.65515]
[1750803107864,9.9888,2441.5,2441.4,0.65507]
[1750803108163,35.5388,2441.5,2441.4,0.65507]
[1750803108357,35.5388,2441.5,2440.9,4.6255]
[1750803108358,0.65508,2441.4,2441.1,1.4002]
[1750803108560,36.19385,2441.5,2441.4,0.65507]
[1750803108961,35.5388,2441.5,2441.4,0.65507]
[1750803109863,36.19384,2441.5,2441.4,0.65507]
[1750803110058,37.16593731,2441.5,2441.4,0.65507]
[1750803110763,36.51089731,2441.5,2441.4,0.65507]
[1750803111062,29.72989731,2441.5,2441.4,0.65507]
[1750803111263,27.17613731,2441.5,2441.4,0.65507]
[1750803111462,30.38393731,2441.5,2441.4,0.65507]
[1750803111663,27.17613731,2441.5,2441.4,0.65507]
[1750803113861,26.52109731,2441.5,2441.4,0.65507]
[1750803114160,30.38393731,2441.5,2441.4,0.65507]
[1750803114768,29.72889731,2441.5,2441.4,0.65507]
[1750803115068,26.52109731,2441.5,2441.4,0.65507]
[1750803115463,29.72889731,2441.5,2441.4,0.65507]
[1750803115658,26.52109731,2441.5,2441.4,0.65507]
[1750803115865,0.97209731,2441.5,2441.4,0.65507]
[1750803116060,26.51809731,2441.5,2441.4,1.33857]
[1750803116469,27.17313731,2441.5,2441.4,1.33857]
[1750803116666,26.51809731,2441.5,2441.4,1.33857]
[1750803118358,26.51820315,2441.5,2441.4,1.33857]
[1750803118563,0.97220315,2441.5,2441.4,1.33857]
[1750803118868,6.781,2441.9,2441.8,0.65494]
[1750803119167,33.9513097,2441.9,2441.8,0.65494]
[1750803119567,32.324,2441.9,2441.8,0.65494]
[1750803119971,32.97893,2441.9,2441.8,0.65494]
[1750803120168,32.324,2441.9,2441.8,0.65494]
[1750803120670,33.29617504,2441.9,2441.8,0.65494]
[1750803120863,0.97217504,2441.9,2441.8,0.65494]
[1750803121070,26.51417504,2441.9,2441.8,0.65494]
[1750803121570,0.97217504,2441.9,2441.8,0.65494]
[1750803121774,6.78,2442.1,2442.0,0.65491]
[1750803121971,33.29220905,2442.1,2442.0,0.65491]
[1750803122573,32.32,2442.1,2442.0,0.65491]
[1750803122772,3.86265,2442.2,2442.1,0.65488]
[1750803123075,30.37256303,2442.2,2442.1,0.65488]
[1750803123273,0.65489,2442.1,2442.0,0.65489]
[1750803123477,26.19189,2442.1,2442.0,0.65489]
[1750803124274,25.537,2442.1,2441.9,0.65493]
[1750803124469,2.38995041,2442.0,2441.9,0.65493]
[1750803124668,3.04486041,2442.0,2441.9,0.65493]
[1750803125068,2.38995041,2442.0,2441.9,0.65493]
[1750803125364,26.1919,2442.1,2442.0,0.65491]
[1750803126580,25.537,2442.1,2442.0,0.65491]
[1750803127173,25.537,2442.1,2442.0,2.99491]
[1750803127377,0.65483,2442.3,2442.2,0.65484]
[1750803127676,25.533,2442.3,2442.2,0.65485]
[1750803127876,27.1590513,2442.3,2442.2,0.65485]
[1750803128573,27.1590613,2442.3,2442.2,0.65485]
[1750803129076,26.18784,2442.3,2442.2,0.65485]
[1750803129272,25.533,2442.3,2442.2,0.65485]
[1750803129576,26.18783,2442.3,2442.2,0.65485]
[1750803129778,25.533,2442.3,2442.2,0.65485]
[1750803130576,25.529,2442.3,2442.2,0.65485]
[1750803133180,0.6548,2442.4,2442.3,0.65483]
[1750803133480,0.65484,2442.3,2442.2,0.65484]
[1750803133978,26.17984,2442.3,2442.2,0.65484]
[1750803134573,3.2078,2442.6,2442.5,0.65477]
[1750803134876,29.38754,2442.6,2442.5,0.65477]
[1750803135777,28.7328,2442.6,2442.5,0.65477]
[1750803136173,29.38754,2442.6,2442.5,0.65477]
[1750803136374,28.7328,2442.6,2442.5,0.65477]
[1750803136877,29.38754,2442.6,2442.5,0.65477]
[1750803137073,0.65481,2442.4,2442.3,0.65482]
[1750803137278,3.04476041,2442.4,2442.3,0.65482]
[1750803137878,2.38995041,2442.4,2442.3,0.65482]
[1750803138078,3.04475041,2442.4,2442.3,0.65482]
[1750803140081,2.38995041,2442.4,2442.2,0.65484]
[1750803140378,26.17184,2442.3,2442.2,0.65484]
[1750803142177,1.63714,2442.2,2441.7,3.2078]
[1750803142383,3.04493041,2441.8,2441.4,3.2078]
[1750803142677,2.38995041,2441.5,2441.4,3.86287]
[1750803143181,2.38995041,2441.5,2441.4,3.2078]
[1750803143479,2.38995041,2441.5,2441.4,0.65507]
[1750803143873,3.04499041,2441.5,2441.3,0.65508]
[1750803144270,0.65507,2441.4,2441.2,1.3342]
[1750803144482,3.04500041,2441.5,2441.3,0.65507]
[1750803144680,3.04501041,2441.5,2441.3,0.65507]
[1750803144879,2.38995041,2441.5,2441.4,0.65507]
[1750803145674,3.04499041,2441.5,2441.4,0.65507]
[1750803146382,3.04499041,2441.5,2441.3,0.65508]
[1750803146576,25.512,2441.4,2441.3,0.68508]
[1750803147178,26.16707,2441.4,2441.3,0.68508]
[1750803147679,25.512,2441.4,2441.3,0.03]
[1750803147980,25.512,2441.4,2441.3,0.68509]
[1750803150173,25.512,2441.4,2441.3,0.65509]
[1750803150583,3.86279,2441.7,2441.3,1.63774]
[1750803150879,36.14179,2441.7,2441.6,0.65501]
[1750803151080,37.11445624,2441.7,2441.6,0.65501]
[1750803151282,36.45946624,2441.7,2441.6,0.65501]
[1750803152686,35.4868,2441.7,2441.6,0.65501]
[1750803155986,36.14179,2441.7,2441.6,0.65501]
[1750803156189,32.93399,2441.7,2441.6,0.65501]
[1750803156388,32.279,2441.7,2441.6,0.65501]
[1750803157390,32.93399,2441.7,2441.6,0.65501]
[1750803159292,32.93399,2441.7,2441.5,0.65502]
[1750803159293,0.65502,2441.6,2441.5,0.65502]
[1750803159590,32.93401,2441.7,2441.6,0.65501]
[1750803163189,0.65501,2441.6,2441.5,0.65502]
[1750803163787,0.65507,2441.4,2441.3,0.65507]
[1750803164093,25.499,2441.4,2441.3,0.65507]
[1750803164493,26.15407,2441.4,2441.3,0.65507]
[1750803164894,25.499,2441.4,2441.3,0.65507]
[1750803165096,26.15407,2441.4,2441.3,0.65507]
[1750803165295,25.499,2441.4,2441.3,0.65507]
[1750803166493,26.15407,2441.4,2441.3,0.65507]
[1750803168997,0.65509,2441.3,2441.2,1.3342]
[1750803169194,0.65509,2441.3,2441.2,1.3442]
[1750803169699,26.15409,2441.4,2441.3,0.65509]
[1750803170193,0.65509,2441.3,2441.2,0.6791]
[1750803170394,0.65509,2441.3,2441.2,0.6891]
[1750803170995,26.15408,2441.4,2441.3,0.65509]
[1750803171195,0.65509,2441.3,2441.2,1.3342]
[1750803171396,1.62973204,2441.3,2441.2,1.3442]
[1750803171591,3.36459245,2441.3,2441.1,0.7057]
[1750803171796,26.15407,2441.4,2441.3,0.65509]
[1750803171997,27.12937409,2441.4,2441.3,0.65509]
[1750803172796,0.65509,2441.3,2441.2,0.6551]
[1750803173095,0.97530409,2441.3,2441.2,0.6551]
[1750803173499,1.63039409,2441.3,2441.2,0.6551]
[1750803173696,0.97530409,2441.3,2441.2,0.6551]
[1750803174302,1.63039409,2441.3,2441.2,0.6551]
[1750803174505,1.63039409,2441.3,2441.2,0.6651]
[1750803175299,1.63039409,2441.3,2441.2,0.01]
[1750803175500,1.63039409,2441.3,2441.2,0.66512]
[1750803176203,1.63039409,2441.3,2441.2,0.65512]
[1750803176404,0.97530409,2441.3,2441.2,0.65512]
[1750803176802,0.97530409,2441.3,2441.1,1.4051]
[1750803177005,3.3652545,2441.3,2441.1,1.4051]
[1750803177209,3.04505041,2441.3,2441.2,0.65512]
[1750803177404,4.01748778,2441.3,2441.2,0.65512]
[1750803177604,0.97243737,2441.3,2441.2,0.65512]
[1750803178511,25.499,2441.4,2441.3,0.65509]
[1750803178913,26.47146391,2441.4,2441.3,0.65509]
[1750803179212,25.499,2441.4,2441.3,0.65509]
[1750803179411,25.499,2441.4,2441.2,2.0584]
[1750803179613,25.499,2441.4,2441.2,2.0684]
[1750803179911,25.499,2441.4,2441.3,0.65509]
[1750803180113,0.65509,2441.3,2441.2,2.0584]
[1750803180313,0.65509,2441.3,2441.2,2.0684]
[1750803180517,1.62757923,2441.3,2441.2,2.0684]
[1750803181110,0.97248923,2441.3,2441.2,2.0684]
[1750803181314,1.62757923,2441.3,2441.2,2.0684]
[1750803182720,0.97248923,2441.3,2441.2,2.0584]
[1750803183017,2.45426849,2441.8,2441.7,0.65499]
[1750803183018,0.65498,2441.8,2441.7,0.65499]
[1750803183325,0.9726422,2441.8,2441.7,0.65499]
[1750803184219,1.6276022,2441.8,2441.7,0.65499]
[1750803184515,0.9726422,2441.8,2441.7,0.65499]
[1750803186009,0.65499,2441.7,2441.6,0.6944]
[1750803186213,0.65503,2441.6,2441.5,0.65503]
[1750803186408,0.65504,2441.5,2441.4,0.65505]
[1750803186620,0.65507,2441.4,2441.3,0.65508]
[1750803186918,4.70109767,2441.4,2441.3,0.66508]
[1750803187110,0.65509,2441.3,2441.2,0.6551]
[1750803187421,1.62696726,2441.3,2441.2,0.6551]
[1750803187922,0.97187726,2441.3,2441.2,0.6551]
[1750803188314,27.09897726,2441.3,2440.9,6.34635599]
[1750803188515,26.1271,2441.3,2441.2,0.65512]
[1750803188715,27.09891711,2441.3,2441.2,0.65512]
[1750803188915,0.65512,2441.2,2441.1,0.65513]
[1750803189221,0.65512,2441.2,2441.1,0.71513]
[1750803189721,25.472,2441.3,2441.2,0.65512]
[1750803189722,26.12711,2441.3,2441.2,0.65512]
[1750803189922,27.09870606,2441.3,2441.2,0.65512]
[1750803190221,27.09870606,2441.3,2441.1,0.65513]
[1750803190421,3.36148919,2441.2,2440.9,0.684]
[1750803190722,1.62668878,2441.1,2441.0,0.65517]
[1750803190926,0.97153878,2441.1,2441.0,0.65517]
[1750803191226,2.38995041,2441.2,2441.1,0.65515]
[1750803191523,28.1515,2441.3,2441.2,0.65512]
[1750803191718,29.12284181,2441.3,2441.2,0.65512]
[1750803192222,0.65513,2441.2,2441.1,0.65514]
[1750803192419,0.97134181,2441.2,2440.9,0.684]
[1750803192622,26.82551,2441.3,2441.2,0.65512]
[1750803192822,0.65513,2441.2,2440.9,2.0464]
[1750803193023,0.65513,2441.2,2440.9,2.1564]
[1750803193219,26.82551,2441.3,2441.2,0.65512]
[1750803193417,27.79678395,2441.3,2441.2,0.65512]
[1750803195026,27.14167395,2441.3,2441.2,0.65512]
[1750803196125,27.79676395,2441.3,2441.2,0.65512]
[1750803196420,0.97127395,2441.3,2441.2,2.99512]
[1750803196626,7.38602,2441.6,2441.5,0.65503]
[1750803196822,6.731,2441.6,2441.5,0.65503]
[1750803197022,32.84901,2441.6,2441.5,0.65503]
[1750803197228,32.194,2441.6,2441.5,0.66503]
[1750803197529,32.84901,2441.6,2441.5,0.66503]
[1750803197922,7.38601,2441.6,2441.5,0.66503]
[1750803198122,32.84901,2441.6,2441.5,0.66503]
[1750803199529,32.84901,2441.6,2441.5,0.01]
[1750803199830,32.84901,2441.6,2441.5,0.66504]
[1750803200833,32.84901,2441.6,2441.5,0.01]
[1750803201627,32.84901,2441.6,2441.5,0.66504]
[1750803202533,32.84901,2441.6,2441.5,0.01]
[1750803202734,32.84901,2441.6,2441.5,0.66504]
[1750803203130,34.58395041,2441.6,2441.0,3.13385599]
[1750803203433,3.04503041,2441.4,2441.3,0.65508]
[1750803203632,28.50003041,2441.4,2441.3,0.65508]
[1750803203935,0.65513,2441.2,2441.1,0.65513]
[1750803204129,26.10913,2441.2,2441.1,0.65513]
[1750803204529,26.10913,2441.2,2441.0,0.65515]
[1750803204732,26.10913,2441.2,2441.1,0.65515]
[1750803204928,25.454,2441.2,2441.1,0.65515]
[1750803205836,25.454,2441.2,2441.1,0.71515]
[1750803206529,26.10912,2441.2,2441.1,0.71515]
[1750803206732,25.454,2441.2,2441.1,0.71515]
[1750803208940,25.454,2441.2,2441.1,0.65515]
[1750803211237,25.454,2441.2,2441.1,0.72515]
[1750803211738,0.6817,2441.3,2441.2,0.65512]
[1750803211939,25.444,2441.3,2441.2,0.02]
[1750803212139,0.65505,2441.5,2441.2,0.02]
[1750803212439,26.41084547,2441.4,2441.3,0.65509]
[1750803214240,26.41084547,2441.4,2441.3,2.05639]
[1750803214939,0.96784547,2441.4,2441.3,4.39639]
[1750803215244,25.44,2441.5,2441.4,0.65507]
[1750803215542,26.40837803,2441.5,2441.4,4.12637]
[1750803216332,0.96837803,2441.5,2441.4,2.05637]
[1750803216539,10.59369,2442.1,2442.0,0.65491]
[1750803216738,36.99883983,2442.1,2442.0,0.65491]
[1750803216944,36.34394983,2442.1,2442.0,0.65491]
[1750803217143,0.65491,2442.0,2441.9,0.65491]
[1750803217341,2.45185316,2442.4,2441.9,0.65491]
[1750803217342,2.45185316,2442.5,2442.4,0.6548]
[1750803217540,2.45185316,2442.5,2442.1,3.2078]
[1750803217541,0.96796178,2442.5,2442.1,3.2078]
[1750803217742,6.25249041,2442.7,2442.5,0.65475]
[1750803218243,5.59775041,2442.7,2442.6,0.65474]
[1750803218842,6.25247041,2442.7,2442.6,0.65474]
[1750803219147,5.59775041,2442.7,2442.6,0.65474]
[1750803221844,6.25247041,2442.7,2442.6,0.65474]
[1750803222145,6.25247041,2442.7,2442.5,0.65476]
[1750803222547,6.25247041,2442.7,2442.6,0.65475]
[1750803223143,5.59775041,2442.7,2442.6,0.65475]
[1750803223847,6.25247041,2442.7,2442.5,0.65476]
[1750803224048,0.65475,2442.6,2442.5,0.65476]
[1750803224248,0.65475,2442.6,2442.4,0.65478]
[1750803224447,25.426,2442.5,2442.4,0.65478]
[1750803226450,25.426,2442.5,2442.1,3.2078]
[1750803226652,3.86261,2442.4,2442.3,0.65482]
[1750803226841,0.65481,2442.4,2442.3,0.65482]
[1750803227245,0.65483,2442.3,2442.2,0.65484]
[1750803227445,0.65485,2442.2,2442.1,0.65488]
[1750803227742,0.65492,2442.0,2441.9,0.65492]
[1750803227947,0.65493,2441.9,2441.8,0.65495]
[1750803228150,0.65496,2441.8,2441.7,0.65497]
[1750803228346,25.418,2441.9,2441.8,0.65496]
[1750803228347,26.07295,2441.9,2441.8,0.65496]
[1750803228551,0.65496,2441.8,2441.7,0.65497]
[1750803228953,26.07295,2441.9,2441.8,0.65496]
[1750803231354,26.07295,2441.9,2441.8,0.68496]
[1750803236055,26.07295,2441.9,2441.8,0.65496]
[1750803236862,25.418,2441.9,2441.8,0.65496]
[1750803237353,26.07293,2441.9,2441.8,0.65496]
[1750803238059,25.418,2441.9,2441.8,0.66496]
[1750803243058,3.8763,2442.1,2442.0,0.65491]
[1750803243257,29.2803,2442.1,2442.0,0.65491]
[1750803244161,26.0725,2442.1,2442.0,0.65491]
[1750803244355,26.0725,2442.1,2441.9,0.6839]
[1750803244555,26.7274,2442.1,2442.0,0.65491]
[1750803244762,27.68689901,2442.1,2442.0,0.65491]
[1750803245154,0.65491,2442.0,2441.9,1.33882]
[1750803245354,0.65495,2441.9,2441.8,0.65495]
[1750803245555,0.65492,2442.0,2441.9,0.65493]
[1750803245760,27.016684,2442.0,2441.9,0.65493]
[1750803245960,0.65497,2441.8,2441.7,0.65497]
[1750803246155,26.05597,2441.8,2441.7,0.65497]
[1750803246462,25.401,2441.8,2441.7,0.65497]
[1750803248564,0.65492,2442.0,2441.9,0.65493]
[1750803248766,27.01271965,2442.0,2441.9,0.65493]
[1750803250169,26.35779965,2442.0,2441.6,1.9655]
[1750803250369,26.05291,2442.0,2441.9,0.65493]
[1750803250568,27.01287169,2442.0,2441.9,0.65493]
[1750803254483,0.65495,2441.9,2441.8,0.65495]
[1750803255781,1.61618517,2441.9,2441.8,0.65495]
[1750803258486,0.65496,2441.8,2441.7,3.10718887]
[1750803258690,0.65495,2441.9,2441.8,0.65496]
[1750803258891,1.61667219,2441.9,2441.8,0.65496]
[1750803263293,0.65497,2441.8,2441.7,0.65497]
[1750803263488,1.61669219,2441.8,2441.7,0.65497]
[1750803263988,10.0416726,2441.8,2441.5,2.45221887]
[1750803264183,5.59775041,2441.6,2441.3,2.45221887]
[1750803264389,2.38995041,2441.4,2441.0,2.45221887]
[1750803264686,1.63794,2441.0,2440.5,0.7077]
[1750803264888,0.65528,2440.6,2440.5,0.62]
[1750803265094,0.65534,2440.4,2440.2,0.7077]
[1750803265291,25.382,2440.3,2440.2,1.57307]
[1750803265997,26.03736,2440.3,2440.1,0.65541]
[1750803266294,0.65539,2440.2,2440.0,2.71373]
[1750803266491,0.65539,2440.2,2440.0,3.10373]
[1750803266798,0.65542,2440.1,2440.0,1.074]
[1750803266992,0.65541,2440.2,2440.0,1.72944]
[1750803267196,0.65542,2440.1,2440.0,1.72944]
[1750803267395,0.65542,2440.1,2440.0,0.39]
[1750803268196,7.34742,2440.1,2440.0,0.39]
[1750803268696,6.692,2440.1,2440.0,0.39]
[1750803268897,6.692,2440.1,2440.0,0.65544]
[1750803274400,3.2078,2440.3,2439.9,3.2078]
[1750803274696,3.2078,2440.3,2440.2,0.65539]